[Event "TUR-ch Men 2018"]
[Site "Kemer"]
[Date "2018.10.29"]
[Round "3.4"]
[White "Soylu, Suat"]
[Black "Gulbas, Cemil"]
[Result "0-1"]
[ECO "B84"]
[WhiteElo "2327"]
[BlackElo "2393"]
[Annotator "NA"]
[PlyCount "64"]
[EventDate "2018.10.26"]
[EventType "tourn"]
[EventCountry "TUR"]
[SourceTitle "playchess.com"]
[Source "ChessBase"]
[SourceQuality "1"]
[TimeControl "5400+30"]

{[%evp 8,62,28,15,44,30,41,18,19,10,26,36,26,-21,67,49,54,48,32767,32767,32767,32767,32767,32767,32767,68,32767,83,32767,32767,32767,32767,73,68,73,32767,64,32767,32767,66,32767,32767,32767,32767,32767,32767,32767,32767,32767,32767,32767,32767,32767,32767,60,32767,37]} 1. e4 {[%emt 0:00:30]} c5 {[%emt 0:01:30]} 2. Nf3 {[%emt 0:00:00]} Nc6 {[%emt 0:01:30]} 3. d4 {[%emt 0:01:00]} cxd4 {[%emt 0:00:30]} 4. Nxd4 {[%emt 0:00:30]} e6 {[%emt 0:03:30]} 5. Nc3 {[%emt 0:00:30]} Qc7 {[%emt 0:03:30]} 6. Be3 {[%emt 0:01:30]} a6 {[%emt 0:00:30]} 7. Qd2 {[%emt 0:00:30]} Nf6 {[%emt 0:02:30]} 8. f4 {[%emt 0:01:30]} d6 {[%emt 0:06:30]} 9. Be2 {[%emt 0:05:30]} Bd7 {[%emt 0:08:30] B84: Sicilian Scheveningen: 6 Be2 a6, lines without early Be3} 10. O-O-O {[%emt 0:06:30] LiveBook: 8 Games} (10. Nb3 $14) 10... Nxd4 {[%emt 0:29:30]} (10... b5 11. Bxb5 axb5 12. Ndxb5 Qa5 13. Nxd6+ Bxd6 14. Qxd6 O-O-O 15. e5 Be8 {1-0 (49) Gledura,B (2602)-Bachmann,A (2646) Chartres 2017}) 11. Qxd4 {[%emt 0:02:30]} Rc8 $146 {[%emt 0:00:30]} ({Predecessor:} 11... Bc6 12. g4 Nd7 13. Kb1 Be7 14. g5 e5 15. Nd5 exd4 16. Nxc7+ Kd8 17. Nxa8 dxe3 {1-0 (32) Watson,W (2535)-Semkov,S (2470) Saint John 1988}) 12. Bf3 {[%emt 0:07:30]} Bc6 {[%emt 0:06:30]} 13. Kb1 {[%emt 0:21:30]} Nd7 {[%emt 0:20:17]  [%clk 0:11:13]} 14. Rhe1 {[%emt 0:02:30]} e5 {[%emt 0:00:30]} 15. Qd2 {[%emt 0:00:30]} Be7 {[%emt 0:00:10]} 16. Bg4 {[%emt 0:03:30]} Rd8 {[%emt 0:00:16]} 17. Bxd7+ {[%emt 0:01:30]} Rxd7 {[%emt 0:03:48]} 18. Nd5 {[%emt 0:01:30]} Bxd5 {[%emt 0:00:05]} 19. Qxd5 {[%emt 0:00:30]} Rd8 {[%emt 0:03:56]} 20. Rd3 {[%emt 0:05:30]} O-O {[%emt 0:00:38]} 21. Red1 {[%emt 0:00:30]} Rc8 {[%emt 0:01:01]} 22. Rc3 {[%emt 0:05:30]} Qb8 {[%emt 0:00:16]} 23. Rdd3 {[%emt 0:00:30]} h6 {[%emt 0:00:37]} 24. a4 {[%emt 0:06:30]} Rfe8 {[%emt 0:01:03]} 25. Rxc8 {[%emt 0:04:30]} Qxc8 {[%emt 0:01:14]} 26. Rb3 {[%emt 0:06:24]} exf4 {[%emt 0:00:58]} 27. Bxf4 {[%emt 0:01:02]} Qg4 {[%emt 0:00:31]} 28. g3 {[%emt 0:02:57]} b5 {[%emt 0:00:36]} 29. axb5 {[%emt 0:00:14]} axb5 {[%emt 0:00:04]} 30. Rxb5 {[%emt 0:00:47]} Rc8 {[%emt 0:01:52]} 31. Rb7 {[%emt 0:02:06]} Qe2 $14 {[%emt 0:00:38]} 32. Qb3 {[%emt 0:08:08]} Qf1+ {[%emt 0:00:16]} 0-1

[Event "TUR-ch Men 2018"]
[Site "Kemer"]
[Date "2018.10.29"]
[Round "3.6"]
[White "Sevgi, Volkan"]
[Black "Baglan, Esat"]
[Result "1/2-1/2"]
[ECO "C07"]
[WhiteElo "2296"]
[BlackElo "2343"]
[Annotator "ChessBase"]
[PlyCount "60"]
[EventDate "2018.10.26"]
[EventType "tourn"]
[EventCountry "TUR"]
[SourceTitle "playchess.com"]
[Source "ChessBase"]
[SourceQuality "1"]
[TimeControl "5400+30"]

1. e4 {[%emt 0:00:30] 2} e6 {[%emt 0:00:30] 2} 2. d4 {[%emt 0:00:30] 2} d5 {[%emt 0:00:30]} 3. Nd2 {[%emt 0:00:00]} c5 {[%emt 0:01:30]} 4. Ngf3 {[%emt 0:02:00]} Nc6 {[%emt 0:06:30]} 5. Bb5 {[%emt 0:04:30]} cxd4 {[%emt 0:04:30]} 6. Nxd4 {[%emt 0:02:30]} Bd7 {[%emt 0:00:30]} 7. Nxc6 {[%emt 0:00:00]} bxc6 {[%emt 0:00:30]} 8. Bd3 {[%emt 0:00:00]} Bd6 {[%emt 0:01:30]} 9. Qe2 {[%emt 0:00:30]} Qb8 {[%emt 0:23:30]} 10. Nf3 {[%emt 0:08:30]} Ne7 {[%emt 0:01:30]} 11. e5 {[%emt 0:01:30]} Bc7 {[%emt 0:01:30]} 12. O-O {[%emt 0:00:30]} Ng6 {[%emt 0:04:30]} 13. Re1 {[%emt 0:02:30]} O-O {[%emt 0:03:30]} 14. Ng5 {[%emt 0:07:30]} Bxe5 {[%emt 0:13:30]} 15. Qh5 {[%emt 0:09:30]} h6 {[%emt 0:08:30]} 16. Nxf7 {[%emt 0:16:30]} Bxh2+ {[%emt 0:00:30]} 17. Kh1 {[%emt 0:00:30]} Rxf7 {[%emt 0:00:30]} 18. Qxg6 {[%emt 0:00:30]} Bf4 {[%emt 0:04:30] [%clk 0:20]} 19. Qh7+ {[%emt 0:00:30]} Kf8 {[%emt 0:01:30]} 20. Bg6 {[%emt 0:00:30]} Bxc1 {[%emt 0:04:19]} 21. Bxf7 {[%emt 0:03:30]} Bxb2 {[%emt 0:03:24]} 22. Qg8+ {[%emt 0:05:30]} Ke7 {[%emt 0:00:40]} 23. Bxe6 {[%emt 0:00:30]} Qxg8 {[%emt 0:01:11]} 24. Bxg8+ {[%emt 0:00:00]} Kd6 {[%emt 0:01:19]} 25. Rab1 {[%emt 0:00:00]} Bc3 {[%emt 0:00:18]} 26. Re3 {[%emt 0:00:30]} d4 {[%emt 0:00:10]} 27. Rd1 {[%emt 0:00:30]} Kc7 {[%emt 0:02:38]} 28. Be6 {[%emt 0:00:30]} dxe3 {[%emt 0:01:32]} 29. Rxd7+ {[%emt 0:00:30]} Kb6 {[%emt 0:00:05]} 30. fxe3 {[%emt 0:00:00]} Re8 {[%emt 0:02:42]} 1/2-1/2

[Event "TUR-ch Men 2018"]
[Site "Kemer"]
[Date "2018.10.17"]
[Round "4.5"]
[White "Gunduz, Umut Erdem"]
[Black "Apaydin, Fethi"]
[Result "1/2-1/2"]
[ECO "B51"]
[WhiteElo "2205"]
[BlackElo "2353"]
[Annotator "NA"]
[PlyCount "98"]
[EventDate "2018.10.26"]
[EventType "tourn"]
[EventCountry "TUR"]
[SourceTitle "playchess.com"]
[Source "ChessBase"]
[SourceQuality "1"]
[TimeControl "5400+30"]

1. e4 {[%emt 0:00:30]} c5 {[%emt 0:00:30]} 2. Nf3 {[%emt 0:00:30]} d6 {[%emt 0:00:30]} 3. Bb5+ {[%emt 0:00:30]} Nd7 {[%emt 0:00:00]} 4. O-O {[%emt 0:00:30]} a6 {[%emt 0:00:00]} 5. Bxd7+ {[%emt 0:04:30]} Bxd7 {[%emt 0:00:30]} 6. d4 {[%emt 0:01:30]} cxd4 {[%emt 0:05:30]} 7. Qxd4 {[%emt 0:00:30]} e5 {[%emt 0:08:30]} 8. Qd3 {[%emt 0:03:30]} Rc8 {[%emt 0:09:30]} 9. Nc3 {[%emt 0:05:30]} h6 {[%emt 0:02:30]} 10. a4 {[%emt 0:21:30]} Nf6 {[%emt 0:02:30]} 11. Be3 {[%emt 0:07:30]} Qc7 {[%emt 0:04:30] LiveBook: 8 Games} 12. Nd2 {[%emt 0:01:30]} Be7 {[%emt 0:04:30]} 13. Rfd1 {[%emt 0:03:30]} O-O {[%emt 0:03:30]} 14. a5 {[%emt 0:01:30]} Be6 {[%emt 0:05:30]} 15. Bb6 {[%emt 0:02:30]} Qc6 {[%emt 0:05:30]} 16. Nf1 {[%emt 0:06:30]} Bc4 {[%emt 0:19:30]} 17. Qf3 {[%emt 0:03:30]} Bd8 {[%emt 0:08:22]} 18. Bxd8 {[%emt 0:07:30]} Rfxd8 {[%emt 0:00:06]} 19. Ne3 {[%emt 0:00:30]} Be6 {[%emt 0:00:05]} 20. g4 {[%emt 0:07:55]} b5 {[%emt 0:05:47]} 21. h4 {[%emt 0:02:26]} Qd7 {[%emt 0:04:38]} 22. g5 {[%emt 0:01:59]} hxg5 {[%emt 0:00:11]} 23. hxg5 {[%emt 0:00:02]} Nh7 $1 {[%emt 0:00:24]} 24. Qh5 {[%emt 0:06:40]} Re8 {[%emt 0:01:52]} 25. Kg2 {[%emt 0:03:17]} Qd8 {[%emt 0:01:31] [#]} (25... Qe7 $1 $14) 26. Rxd6 $1 {[%emt 0:02:46]} Qxd6 {[%emt 0:02:56]} 27. Rh1 {[%emt 0:00:07]} Bh3+ {[%emt 0:00:46]} 28. Qxh3 {[%emt 0:00:01]} Qg6 {[%emt 0:00:00]} 29. Nf5 {[%emt 0:01:03]} Rc6 {[%emt 0:01:36]} 30. Nd5 {[%emt 0:00:49]} Qxg5+ {[%emt 0:00:19]} 31. Kf3 {[%emt 0:00:18]} Qf4+ {[%emt 0:03:10]} 32. Nxf4 {[%emt 0:00:30]} Ng5+ {[%emt 0:00:00]} 33. Kg2 {[%emt 0:01:38]} Nxh3 {[%emt 0:00:03]} 34. Nxh3 {[%emt 0:00:00]} Rxc2 {[%emt 0:00:00]} 35. Rb1 {[%emt 0:00:00]} b4 {[%emt 0:01:58]} 36. Ne3 {[%emt 0:01:38]} Rc5 {[%emt 0:00:03]} 37. Ra1 {[%emt 0:02:41]} Rb8 {[%emt 0:00:02]} 38. Ng1 {[%emt 0:00:16]} Rbb5 {[%emt 0:00:37]} 39. Ra4 {[%emt 0:00:21]} Rc1 {[%emt 0:01:11]} 40. Nf3 {[%emt 0:00:00]} Rcc5 {[%emt 0:00:00]} 41. b3 {[%emt 0:00:00]} (41. Ne1 $5 {[%cal Re1d3]}) 41... Rxa5 {[%emt 0:00:00]} 42. Rxb4 {[%emt 0:00:00]} Rcb5 {[%emt 0:00:00]} 43. Rxb5 {[%emt 0:00:00]} Rxb5 {[%emt 0:00:00]} 44. Nd2 {[%emt 0:00:00]} g6 {[%emt 0:00:00]} 45. Kf3 {[%emt 0:00:00]} Kg7 {[%emt 0:00:00]} 46. Nd5 {[%emt 0:00:00]} f5 {[%emt 0:00:00]} 47. Ke3 {[%emt 0:00:00]} Kh6 {[%emt 0:00:00]} 48. Kd3 {[%emt 0:00:00]} Kh5 {[%emt 0:00:00]} 49. b4 $11 {[%emt 0:00:00]} Kg4 {[%emt 0:01:24]} 1/2-1/2

[Event "TUR-ch Men 2018"]
[Site "Kemer"]
[Date "2018.10.17"]
[Round "6.1"]
[White "Erdogdu, Mert"]
[Black "Soysal, Serkan"]
[Result "1/2-1/2"]
[ECO "A42"]
[WhiteElo "2406"]
[BlackElo "2415"]
[Annotator "ChessBase"]
[PlyCount "114"]
[EventDate "2018.10.26"]
[EventType "tourn"]
[EventCountry "TUR"]
[SourceTitle "playchess.com"]
[Source "ChessBase"]
[SourceQuality "1"]
[TimeControl "5400+30"]

1. c4 {[%emt 0:00:30]} c6 {[%emt 0:01:30]} 2. e4 {[%emt 0:00:00]} d6 {[%emt 0:05:30]} 3. d4 {[%emt 0:00:00]} g6 {[%emt 0:01:30]} 4. Nc3 {[%emt 0:00:30]} Bg7 {[%emt 0:00:00]} 5. Be3 {[%emt 0:02:30]} a6 {[%emt 0:04:00]} 6. Nf3 {[%emt 0:07:30]} Nd7 {[%emt 0:08:30]} 7. Be2 {[%emt 0:04:30]} Ngf6 {[%emt 0:03:30]} 8. O-O {[%emt 0:05:30]} O-O {[%emt 0:03:30]} 9. Nd2 {[%emt 0:03:30]} e5 {[%emt 0:09:30]} 10. d5 {[%emt 0:01:30]} c5 {[%emt 0:00:30]} 11. a3 {[%emt 0:00:30]} Ne8 {[%emt 0:04:30]} 12. b4 {[%emt 0:02:30]} b6 {[%emt 0:10:30]} 13. bxc5 {[%emt 0:02:30]} bxc5 {[%emt 0:00:30]} 14. Rb1 {[%emt 0:02:30]} f5 {[%emt 0:01:30]} 15. Nb3 {[%emt 0:03:30]} Nef6 {[%emt 0:03:30]} 16. exf5 {[%emt 0:17:30]} gxf5 {[%emt 0:00:00]} 17. f4 {[%emt 0:01:30]} e4 {[%emt 0:16:00]} 18. Qd2 {[%emt 0:02:30]} h5 {[%emt 0:05:32]} 19. h3 {[%emt 0:02:30]} Rf7 {[%emt 0:02:46]} 20. Bf2 {[%emt 0:03:30]} Bh6 {[%emt 0:00:48]} 21. Bh4 {[%emt 0:04:30]} Qc7 {[%emt 0:06:55]} 22. Bg5 {[%emt 0:02:30]} Bg7 {[%emt 0:00:11]} 23. Nd1 {[%emt 0:00:30]} a5 {[%emt 0:00:22]} 24. Ne3 {[%emt 0:01:30]} a4 {[%emt 0:01:08]} 25. Na1 {[%emt 0:01:30]} Nf8 {[%emt 0:00:26]} 26. Nac2 {[%emt 0:01:30]} N8h7 {[%emt 0:00:51]} 27. Bh4 {[%emt 0:06:30]} Bd7 {[%emt 0:00:28]} 28. Qd1 {[%emt 0:00:30]} Rb8 {[%emt 0:03:25]} 29. Bxh5 {[%emt 0:02:19]} Nxh5 {[%emt 0:00:11]} 30. Qxh5 {[%emt 0:00:05]} Rb3 {[%emt 0:00:23]} 31. Kh1 {[%emt 0:01:45]} Qb8 {[%emt 0:02:43]} 32. Rbe1 {[%emt 0:01:50]} Qe8 {[%emt 0:00:24]} 33. Qg6 {[%emt 0:02:47]} Rb6 {[%emt 0:03:37]} 34. g4 {[%emt 0:05:08]} fxg4 {[%emt 0:00:39]} 35. hxg4 {[%emt 0:00:18]} Rf8 {[%emt 0:00:20]} 36. Qxe8 {[%emt 0:01:04]} Rxe8 {[%emt 0:00:02]} 37. f5 {[%emt 0:00:00]} Bc3 {[%emt 0:01:15]} 38. Re2 {[%emt 0:00:41]} Kg7 {[%emt 0:00:51]} 39. Kg2 {[%emt 0:01:34]} Bf6 {[%emt 0:00:48]} 40. Bxf6+ {[%emt 0:04:47]} Kxf6 {[%emt 0:00:00]} 41. Rh1 {[%emt 0:00:00]} Ng5 {[%emt 0:00:00]} 42. Kg3 {[%emt 0:00:00]} Ke5 {[%emt 0:00:00]} 43. Reh2 {[%emt 0:00:00]} Rbb8 {[%emt 0:00:00]} 44. Rh6 {[%emt 0:00:00]} Rg8 {[%emt 0:00:00]} 45. R1h5 {[%emt 0:00:00]} Rbf8 {[%emt 0:00:00]} 46. Rg6 {[%emt 0:00:00]} Rxg6 {[%emt 0:00:00]} 47. fxg6 {[%emt 0:00:00]} Kf6 {[%emt 0:00:00]} 48. g7 {[%emt 0:00:00]} Rg8 {[%emt 0:00:00]} 49. Rh6+ {[%emt 0:00:00]} Ke5 {[%emt 0:00:00]} 50. Rg6 {[%emt 0:00:00]} Nf3 {[%emt 0:00:00]} 51. Ng2 {[%emt 0:06:12]} Nd4 {[%emt 0:00:12]} 52. Nce3 {[%emt 0:00:40]} Be8 {[%emt 0:00:42]} 53. Rh6 {[%emt 0:00:24]} Rxg7 {[%emt 0:01:01]} 54. Nf4 {[%emt 0:01:22]} Bf7 {[%emt 0:01:12]} 55. Rh8 {[%emt 0:00:42]} Rg8 {[%emt 0:02:30]} 56. Rh7 {[%emt 0:00:26]} Kf6 {[%emt 0:00:54]} 57. Rh6+ {[%emt 0:01:09]} Ke5 {[%emt 0:01:23]} 1/2-1/2

[Event "TUR-ch Men 2018"]
[Site "Kemer"]
[Date "2018.10.17"]
[Round "6.2"]
[White "Gulbas, Cemil"]
[Black "Baglan, Esat"]
[Result "1/2-1/2"]
[ECO "D48"]
[WhiteElo "2393"]
[BlackElo "2343"]
[Annotator "NA"]
[PlyCount "51"]
[EventDate "2018.10.26"]
[EventType "tourn"]
[EventCountry "TUR"]
[SourceTitle "playchess.com"]
[Source "ChessBase"]
[SourceQuality "1"]
[TimeControl "5400+30"]

1. d4 {[%emt 0:00:30]} d5 {[%emt 0:00:30]} 2. Nf3 {[%emt 0:00:30]} Nf6 {[%emt 0:00:30]} 3. c4 {[%emt 0:00:00]} c6 {[%emt 0:00:30]} 4. Nc3 {[%emt 0:00:00]} e6 {[%emt 0:01:30]} 5. e3 {[%emt 0:01:30]} Nbd7 {[%emt 0:00:30]} 6. Bd3 {[%emt 0:00:30]} dxc4 {[%emt 0:00:30]} 7. Bxc4 {[%emt 0:00:30]} b5 {[%emt 0:00:00]} 8. Bd3 {[%emt 0:00:30]} a6 {[%emt 0:03:00]} 9. e4 {[%emt 0:03:30]} c5 {[%emt 0:00:30]} 10. d5 {[%emt 0:03:30]} c4 {[%emt 0:05:30]} 11. Bc2 {[%emt 0:04:30]} e5 {[%emt 0:15:30]} 12. O-O {[%emt 0:05:30]} Bd6 {[%emt 0:04:30]} 13. Ne2 {[%emt 0:08:30]} O-O {[%emt 0:04:30] D48: Damengambit (Meraner Variante)} 14. Ng3 {[%emt 0:00:30]} Nc5 {[%emt 0:07:30]} 15. h3 {[%emt 0:08:30]} a5 {[%emt 0:14:30]} 16. Bg5 {[%emt 0:08:30]} h6 {[%emt 0:02:30]} 17. Be3 {[%emt 0:01:30]} Re8 {[%emt 0:03:30]} 18. Qe2 $146 {[%emt 0:06:30]} ({Vorgänger:} 18. Nh4 Nfxe4 19. Ngf5 Nf6 20. Qd2 Bf8 21. Bxc5 Bxc5 {1-0 (59) Gordievsky,D (2443)-Bukavshin,I (2522) Loo 2013}) 18... a4 {[%emt 0:13:30]} 19. Bd2 {[%emt 0:21:30]} Bd7 {[%emt 0:02:26]} 20. Rfd1 {[%emt 0:11:21]} Nh7 {[%emt 0:04:52]} 21. Nh2 {[%emt 0:03:38]} Qh4 {[%emt 0:02:59]} 22. Ng4 {[%emt 0:02:10]} Nf6 {[%emt 0:05:30]} 23. Nh2 $11 {[%emt 0:00:40]} Nh7 {[%emt 0:00:24]} 24. Ng4 {[%emt 0:00:18]} Nf6 {[%emt 0:00:14]} 25. Nh2 {[%emt 0:00:18]} Nh7 {[%emt 0:00:11]} 26. Ng4 {[%emt 0:00:38]} 1/2-1/2

[Event "TUR-ch Men 2018"]
[Site "Kemer"]
[Date "2018.10.17"]
[Round "6.3"]
[White "Ozen, Deniz"]
[Black "Sevgi, Volkan"]
[Result "1-0"]
[ECO "B52"]
[WhiteElo "2411"]
[BlackElo "2296"]
[Annotator "NA"]
[PlyCount "141"]
[EventDate "2018.10.26"]
[EventType "tourn"]
[EventCountry "TUR"]
[SourceTitle "playchess.com"]
[Source "ChessBase"]
[SourceQuality "1"]
[TimeControl "5400+30"]

1. e4 {[%emt 0:00:30]} c5 {[%emt 0:00:30]} 2. Nf3 {[%emt 0:00:30]} d6 {[%emt 0:00:30]} 3. Bb5+ {[%emt 0:00:00]} Bd7 {[%emt 0:00:30]} 4. Bxd7+ {[%emt 0:00:00]} Qxd7 {[%emt 0:00:00]} 5. O-O {[%emt 0:00:00]} Nf6 {[%emt 0:01:00]} 6. Qe2 {[%emt 0:00:00]} Nc6 {[%emt 0:00:00]} 7. Rd1 {[%emt 0:00:00] B52: Sicilian: Moscow Variation with 3...Bd7} (7. b3 g6 8. Bb2 Bg7 9. c4 Nh5 10. Bxg7 Nxg7 11. Nc3 O-O 12. Qe3 e5 13. d3 f5 14. Nd5 f4 15. Qd2 Ne6 16. b4 {½-½ (71) Anand,V (2759)-Grischuk,A (2766) Leuven 2018}) 7... g5 {[%emt 0:00:00]} 8. c3 {[%emt 0:00:00]} g4 {[%emt 0:00:00]} 9. Nh4 {[%emt 0:00:30]} Qe6 {[%emt 0:00:00]} 10. d3 {[%emt 0:00:00]} d5 {[%emt 0:00:00]} 11. Bg5 {[%emt 0:02:00]} O-O-O {[%emt 0:01:00]} 12. Nd2 {[%emt 0:14:30]} dxe4 $146 {[%emt 0:00:30]} ({Predecessor:} 12... Rg8 13. Bf4 Nh5 14. Bg3 Nxg3 15. hxg3 {½-½ (32) Schneider,H (2157)-Petruzzelli,R (2119) ICCF email 2012}) 13. dxe4 {[%emt 0:03:30]} Rg8 {[%emt 0:28:30]} 14. Bf4 {[%emt 0:05:30]} Nh5 {[%emt 0:10:30]} 15. Be3 {[%emt 0:00:30]} Qf6 {[%emt 0:08:30]} 16. Nf5 {[%emt 0:02:30]} e6 {[%emt 0:02:30]} 17. Ng3 {[%emt 0:00:00]} Nxg3 {[%emt 0:07:30]} 18. hxg3 {[%emt 0:02:00]} h5 {[%emt 0:02:30]} 19. Nc4 {[%emt 0:04:30]} Be7 {[%emt 0:01:30]} 20. Rxd8+ {[%emt 0:02:30]} Rxd8 {[%emt 0:01:30]} 21. Rd1 {[%emt 0:00:30]} Rxd1+ {[%emt 0:02:30]} 22. Qxd1 {[%emt 0:00:30]} Kc7 {[%emt 0:17:51]} 23. Bf4+ {[%emt 0:07:30]} e5 {[%emt 0:00:21]} 24. Ne3 {[%emt 0:00:00]} Qe6 {[%emt 0:01:35]} 25. Nd5+ {[%emt 0:00:00]} Kc8 {[%emt 0:00:13]} 26. Be3 {[%emt 0:00:30]} Bd6 {[%emt 0:03:00]} 27. Qd3 {[%emt 0:03:30]} Ne7 {[%emt 0:04:04]} 28. Qc4 {[%emt 0:02:30]} Nxd5 {[%emt 0:01:24]} ({Better is} 28... b6 $1 $14) 29. exd5 {[%emt 0:00:30]} Qe7 {[%emt 0:00:00]} 30. Qe4 {[%emt 0:14:30]} Qf6 {[%emt 0:01:10]} 31. b4 {[%emt 0:01:30]} ({White should play} 31. Qh7 $16) 31... cxb4 {[%emt 0:01:52]} 32. cxb4 {[%emt 0:00:30]} Qg6 {[%emt 0:00:27]} 33. Qc4+ {[%emt 0:00:30]} Kd8 {[%emt 0:00:46] [#]} 34. a3 {[%emt 0:05:30]} ({Inferior is} 34. Bxa7 Qb1+ 35. Kh2 Qxb4 $11) (34. Qb5 $1 $18) 34... a6 {[%emt 0:00:50]} 35. Kh2 {[%emt 0:06:30]} f5 $1 {[%emt 0:00:54]} 36. Bc5 {[%emt 0:06:35]} Kd7 {[%emt 0:01:12]} 37. b5 {[%emt 0:02:50]} Bxc5 {[%emt 0:03:01]} 38. Qxc5 {[%emt 0:00:02]} axb5 {[%emt 0:00:05]} 39. Qxb5+ {[%emt 0:00:52]} Kc7 {[%emt 0:00:01]} 40. Qc5+ {[%emt 0:00:00]} Kd7 {[%emt 0:00:00]} 41. Qb5+ {[%emt 0:00:00]} Kc7 {[%emt 0:00:00]} 42. Qc5+ {[%emt 0:00:00]} Kd7 {[%emt 0:00:00]} 43. Qf8 {[%emt 0:00:00]} h4 {[%emt 0:00:00]} 44. gxh4 {[%emt 0:00:00]} f4 {[%emt 0:00:00]} 45. g3 {[%emt 0:00:00]} Qc2 {[%emt 0:00:00]} (45... fxg3+ $142 46. Kxg3 b5) 46. Qf7+ {[%emt 0:00:00]} Kd8 $18 {[%emt 0:00:00]} 47. Qf6+ {[%emt 0:00:00]} Kd7 {[%emt 0:00:00]} 48. Qe6+ {[%emt 0:00:00]} Kd8 {[%emt 0:00:00]} 49. Qb6+ {[%emt 0:00:00]} Ke8 {[%emt 0:00:00]} 50. gxf4 {[%emt 0:00:00]} g3+ {[%emt 0:04:08]} 51. Kxg3 {[%emt 0:00:00]} exf4+ {[%emt 0:00:06]} 52. Kxf4 {[%emt 0:00:00]} Qc4+ {[%emt 0:00:06]} 53. Ke5 {[%emt 0:01:41]} Qc3+ {[%emt 0:00:08]} 54. Qd4 {[%emt 0:01:30]} Qxa3 {[%emt 0:00:08]} 55. Qe3 {[%emt 0:00:30]} Qf8 {[%emt 0:01:19]} 56. d6 {[%emt 0:01:29]} Kd7 {[%emt 0:01:19]} 57. Qh3+ {[%emt 0:00:24]} Kc6 {[%emt 0:00:13]} 58. Qc3+ {[%emt 0:00:29]} Kb5 {[%emt 0:00:18]} 59. Qb3+ {[%emt 0:00:29]} Ka6 {[%emt 0:00:22]} 60. Qa4+ {[%emt 0:01:54]} Kb6 {[%emt 0:00:06]} 61. Qd4+ {[%emt 0:00:04]} Ka6 {[%emt 0:00:04]} 62. d7 {[%emt 0:06:32]} Qg7+ {[%emt 0:01:06]} 63. Ke4 {[%emt 0:01:18]} Qg4+ {[%emt 0:01:16]} 64. Ke3 {[%emt 0:00:21]} Qe6+ {[%emt 0:00:13]} 65. Kf4 {[%emt 0:00:39]} Qf7+ {[%emt 0:00:20]} 66. Kg3 {[%emt 0:00:05]} Qg8+ {[%emt 0:00:06]} 67. Kh2 {[%emt 0:00:46]} Qd8 {[%emt 0:00:06]} 68. h5 {[%emt 0:00:00]} b5 {[%emt 0:00:47]} 69. h6 {[%emt 0:00:20]} b4 {[%emt 0:00:10]} 70. h7 {[%emt 0:00:35]} Qc7+ {[%emt 0:00:07]} 71. Kh3 {[%emt 0:00:27]} 1-0

[Event "TUR-ch Men 2018"]
[Site "Kemer"]
[Date "2018.10.17"]
[Round "6.4"]
[White "Gunduz, Umut Erdem"]
[Black "Koksal, Ege"]
[Result "0-1"]
[ECO "C72"]
[WhiteElo "2205"]
[BlackElo "2351"]
[Annotator "NA"]
[PlyCount "100"]
[EventDate "2018.10.26"]
[EventType "tourn"]
[EventCountry "TUR"]
[SourceTitle "playchess.com"]
[Source "ChessBase"]
[SourceQuality "1"]
[TimeControl "5400+30"]

1. e4 {[%emt 0:00:30]} e5 {[%emt 0:00:30]} 2. Nf3 {[%emt 0:00:30]} Nc6 {[%emt 0:00:30]} 3. Bb5 {[%emt 0:00:30]} a6 {[%emt 0:00:30]} 4. Ba4 {[%emt 0:00:00]} d6 {[%emt 0:01:30]} 5. O-O {[%emt 0:02:00]} Bg4 {[%emt 0:01:30]} 6. d3 {[%emt 0:19:30] C72: Ruy Lopez: Deferred Steinitz: 5 0-0} (6. h3 h5 7. Bxc6+ bxc6 8. d4 Bxf3 9. Qxf3 exd4 10. e5 d5 11. c3 Bc5 12. Rd1 Qd7 13. cxd4 Bb6 14. Bg5 Ne7 15. Bxe7 Qxe7 {½-½ (36) Zhigalko,S (2641)-Fressinet,L (2662) Katowice 2017}) 6... Qf6 {[%emt 0:03:30]} 7. Nbd2 {[%emt 0:00:30]} Nge7 {[%emt 0:00:30]} 8. h3 {[%emt 0:08:30]} Bd7 $146 {[%emt 0:00:00]} ({Predecessor:} 8... h5 9. Bxc6+ bxc6 10. c3 Ng6 11. Qa4 Kd7 12. d4 Nf4 13. d5 Rb8 14. Qxc6+ {0-1 (31) Budnikova,V (1767)-Potapenko,G Samara 2014}) 9. Bxc6 {[%emt 0:06:30]} Nxc6 {[%emt 0:02:00]} 10. Nc4 {[%emt 0:00:30]} h6 {[%emt 0:00:00]} 11. Ne3 {[%emt 0:00:30]} O-O-O {[%emt 0:02:00]} 12. Nd5 {[%emt 0:13:30]} Qg6 {[%emt 0:01:30]} 13. Nh4 {[%emt 0:01:30]} Qh7 {[%emt 0:00:30]} 14. Be3 {[%emt 0:15:30]} Be7 {[%emt 0:06:30]} 15. Nf3 {[%emt 0:00:00]} f5 {[%emt 0:00:30]} 16. exf5 {[%emt 0:08:00]} Qxf5 {[%emt 0:01:30]} 17. b4 {[%emt 0:06:07]} Be6 {[%emt 0:00:30]} 18. Nxe7+ {[%emt 0:00:00]} Nxe7 {[%emt 0:00:00]} 19. b5 {[%emt 0:01:07]} axb5 {[%emt 0:00:00]} 20. a4 {[%emt 0:03:17]} Bd5 {[%emt 0:05:30]} 21. Nd2 {[%emt 0:02:16]} Qg6 {[%emt 0:04:30]} 22. f3 {[%emt 0:00:05]} bxa4 {[%emt 0:01:30]} 23. Rxa4 {[%emt 0:00:13]} Bc6 {[%emt 0:00:30]} 24. Ra7 {[%emt 0:02:25]} Nd5 {[%emt 0:09:30]} 25. Qe2 {[%emt 0:00:13]} Rhe8 {[%emt 0:00:30]} 26. Nc4 {[%emt 0:02:04]} Kd7 {[%emt 0:01:30]} 27. Rfa1 {[%emt 0:06:20]} Nf4 {[%emt 0:15:30]} 28. Bxf4 {[%emt 0:00:30]} exf4 {[%emt 0:00:30]} 29. Qf2 {[%emt 0:00:01]} Qg3 {[%emt 0:00:30]} 30. Na5 {[%emt 0:01:34]} Qxf2+ {[%emt 0:02:30]} 31. Kxf2 {[%emt 0:00:02]} Re6 {[%emt 0:01:30]} 32. Re1 {[%emt 0:00:43]} {Black should try} Rxe1 $17 {[%emt 0:01:30]} (32... Re5 {[%emt 0:01:30]}) 33. Kxe1 {[%emt 0:00:30]} Re8+ {[%emt 0:00:30]} 34. Kf2 {[%emt 0:00:30]} (34. Kd2 b5 35. Nxc6 Kxc6) 34... Re5 {[%emt 0:00:30]} 35. Nc4 {[%emt 0:00:30]} Rc5 {[%emt 0:00:30]} 36. h4 {[%emt 0:00:30]} b5 {[%emt 0:00:30]} 37. Na3 $19 {[%emt 0:00:30]} b4 {[%emt 0:00:30]} 38. Nc4 {[%emt 0:00:30]} Bb5 {[%emt 0:00:30]} 39. Ra5 {[%emt 0:00:31]} Bxc4 {[%emt 0:17:53]} 40. Rxc5 {[%emt 0:00:30]} dxc5 {[%emt 0:00:00]} 41. dxc4 {[%emt 0:00:00]} Kd6 {[%emt 0:00:00]} 42. Ke2 {[%emt 0:00:00]} Ke5 {[%emt 0:00:00]} 43. Kd3 {[%emt 0:00:00]} h5 {[%emt 0:00:00]} 44. c3 {[%emt 0:00:00]} b3 {[%emt 0:00:00]} 45. Kd2 {[%emt 0:00:00]} Kf5 {[%emt 0:00:00]} 46. Kc1 {[%emt 0:00:00]} g5 {[%emt 0:00:00]} 47. Kb2 {[%emt 0:00:00]} gxh4 {[%emt 0:00:00]} 48. Kxb3 {[%emt 0:00:00]} h3 {[%emt 0:00:00]} 49. gxh3 {[%emt 0:00:00]} Kg5 {[%emt 0:00:00]} 50. Ka4 {[%emt 0:00:00]} Kh4 {[%emt 0:00:00]} 0-1